fUST/lending_fUST_20240417
["ID","MTS","AMOUNT","RATE_DAILY","PERIOD"]
[322814625,1713354640699,-600.65578126,0.000388,2]
[322814626,1713354640707,-392.7276,0.00038933,2]
[322814627,1713354640716,-206.424946,0.00038933,2]
[322814628,1713354640724,-165.0,0.00039,2]
[322814629,1713354640734,-165.0,0.00039,2]
[322814630,1713354640743,-165.0,0.00039,2]
[322814631,1713354640752,-11881.01,0.00039106,30]
[322814632,1713354640761,-6127.91630136,0.00039106,2]
[322814633,1713354640771,-6776.85,0.00039178,12]
[322814634,1713354640781,-155.25194378,0.00039196,4]
[322814635,1713354640791,-154.8889487,0.00039599,3]
[322814636,1713354640800,-3000.0,0.00039876,2]
[322814637,1713354640810,-1501.899039,0.000399,33]
[322814638,1713354640819,-772.566136,0.00039958,4]
[322814639,1713354640828,-64520.10684738,0.00039989,5]
[322814640,1713354640838,-11881.01,0.00039989,30]
[322814641,1713354640847,-63584.15694935,0.0003999,2]
[322814642,1713354640856,-11881.01,0.00039995,30]
[322814643,1713354640866,-6869.95989293,0.00039996,4]
[322814644,1713354640875,-190.40426261,0.00039997,4]
[322814645,1713354640885,-11881.01,0.00039997,30]
[322814646,1713354640894,-11881.01,0.00039997,30]
[322814647,1713354640903,-11881.01,0.00039997,30]
[322814648,1713354640914,-11881.01,0.00039997,30]
[322814649,1713354640923,-283.98333961,0.00039998,4]
[322814650,1713354640937,-304.8459918,0.00039998,4]
[322814651,1713354640947,-250.09230738,0.00039998,4]
[322814652,1713354640958,-160.25407363,0.00039998,10]
[322814653,1713354640968,-154.87609912,0.00039998,4]
[322814654,1713354640978,-641.25475069,0.00039998,4]
[322814655,1713354640988,-164.89174673,0.00039998,4]
[322814657,1713354640998,-650.7424619,0.00039998,4]
[322814658,1713354641008,-241.01674728,0.00039998,4]
[322814659,1713354641019,-78935.91218586,0.00039998,4]
[322814660,1713354641030,-155.53036266,0.00039998,4]
[322814661,1713354641041,-2122.16798476,0.00039998,4]
[322814662,1713354641052,-279.03510771,0.00039998,4]
[322814663,1713354641063,-411.97502516,0.00039998,4]
[322814664,1713354641075,-156.90185805,0.00039998,4]
[322814665,1713354641088,-306.20533282,0.00039998,4]
[322814666,1713354641097,-184.38784647,0.00039998,4]
[322814667,1713354641107,-742.84498014,0.00039998,4]
[322814668,1713354641117,-273.69147795,0.00039998,4]
[322814669,1713354641127,-257.13868997,0.00039998,4]
[322814670,1713354641136,-2721.19451509,0.00039998,4]
[322814671,1713354641145,-258.36492155,0.00039998,4]
[322814672,1713354641155,-487.09164469,0.00039998,4]
[322814673,1713354641165,-1697.52332177,0.00039998,4]
[322814674,1713354641175,-11881.01,0.00039998,30]
[322814675,1713354641190,-11881.01,0.00039998,30]
[322814676,1713354641199,-568.2789366,0.00039999,4]
[322814677,1713354641210,-2937.82993662,0.00039999,4]
[322814678,1713354641219,-18540.2313344,0.00039999,4]
[322814679,1713354641228,-11881.01,0.00039999,30]
[322814680,1713354641238,-11881.01,0.00039999,30]
[322814681,1713354641247,-11881.01,0.00039999,30]
[322814682,1713354641257,-11881.01,0.00039999,30]
[322814683,1713354641266,-11881.01,0.00039999,30]
[322814684,1713354641275,-11881.01,0.00039999,30]
[322814685,1713354641285,-8440.20949215,0.00039999,30]
[322814719,1713354643498,-539.73953572,0.00019177,2]
[322814731,1713354646651,-216.18479097,0.00019176,2]
[322814732,1713354646668,-460.26046428,0.00019177,2]
[322814733,1713354646680,-150.135,0.00031634,2]
[322814734,1713354646692,-1931.45084484,0.00038355,4]
[322814735,1713354646704,-3441.00382194,0.00039999,30]
[322814736,1713354646718,-698.49306914,0.00039999,4]
[322814812,1713355293410,250.0,0.00012124,2]
[322814813,1713355311979,1250.0,0.0001181,2]
[322814814,1713355312012,4500.0,0.0001181,2]
[322814815,1713355312045,9000.0,0.0001181,2]
[322814816,1713355312077,9000.0,0.0001181,2]
[322814817,1713355312110,1150.0,0.0001181,2]
[322814819,1713355475446,2853.75,0.00023,10]
[322814820,1713355541623,10000.0,0.000252,30]
[322814884,1713355832101,-154.86062544,0.00012258,2]
[322814886,1713355832111,-408.43488901,0.00012259,2]
[322814888,1713355832120,-888.43676539,0.00012259,2]
[322814900,1713355832232,-154.86062544,0.00012259,2]
[322814903,1713355832242,-216.18479097,0.0001226,2]
[322814904,1713355832251,-154.86062544,0.0001226,2]
[322814907,1713355832261,-154.86062544,0.00012261,2]
[322814908,1713355832270,-519.26461656,0.00012261,2]
[322814911,1713355832280,-467.87279548,0.00012261,2]
[322814913,1713355832290,-3742.37168361,0.00012261,2]
[322814914,1713355832299,-138942.45775299,0.00012261,2]
[322814916,1713355832308,-211.83113783,0.00012262,2]
[322814918,1713355832318,-154.86062544,0.00012262,2]
[322814921,1713355832327,-7858.55367278,0.00012262,2]
[322814923,1713355832337,-6921.1263496,0.00012262,2]
[322814925,1713355832349,-203.60696342,0.00012262,2]
[322814927,1713355832359,-6921.1263496,0.00012262,2]
[322814928,1713355832368,-6921.1263496,0.00012262,2]
[322814930,1713355832380,-469.12528489,0.00012263,2]
[322814932,1713355832389,-654.45266231,0.00012263,2]
[322814934,1713355832398,-154.86062544,0.00012263,2]
[322814936,1713355832407,-169.267581,0.00012264,2]
[322814938,1713355832416,-169.26758099,0.00012267,2]
[322814940,1713355832425,-169.26758099,0.00012269,2]
[322814942,1713355832435,-169.26758099,0.00012272,2]
[322814945,1713355832445,-169.26758099,0.00012274,2]
[322814946,1713355832457,-169.26758099,0.00012277,2]
[322814948,1713355832466,-300.0,0.0001236,2]
[322814950,1713355832476,-300.0,0.0001236,2]
[322814953,1713355832486,-154.86062544,0.00012361,2]
[322814955,1713355832496,-2584.94589356,0.00012361,2]
[322814957,1713355832506,-154.86062544,0.00012362,2]
[322814958,1713355832515,-203.92427323,0.00012362,2]
[322814960,1713355832526,-471.02610279,0.00012362,2]
[322814962,1713355832535,-167.52776302,0.00012362,2]
[322814964,1713355832544,-2125.76560283,0.00012362,2]
[322814966,1713355832554,-154.86062544,0.00012362,2]
[322814968,1713355832563,-2621.14214872,0.00012362,2]
[322814971,1713355832573,-282.92215931,0.00012362,2]
[322814973,1713355832582,-563.87316233,0.00012362,2]
[322814974,1713355832592,-154.86062544,0.00012362,2]
[322814976,1713355832601,-21592.61544172,0.00012362,2]
[322814979,1713355832618,-9143.63479081,0.00012362,2]
[322815036,1713355838107,-163.98644275,0.00012258,2]
[322815037,1713355838117,-2942.63433838,0.00012258,2]
[322815038,1713355838128,-205.83283873,0.00012258,2]
[322815039,1713355838138,-154.86062544,0.00012258,2]
[322815040,1713355838147,-526.74095961,0.00012362,2]
[322815041,1713355838158,-154.86062544,0.00012363,2]
[322815042,1713355838168,-10699.44760865,0.00012363,2]
[322815043,1713355838180,-6100.10000001,0.00012363,2]
[322815044,1713355838193,-282.54196544,0.00012363,2]
[322815045,1713355838205,-42007.2187954,0.00012363,2]
[322815046,1713355838214,-623.0836212,0.00012374,2]
[322815047,1713355838223,-623.0836212,0.00012374,2]
[322815048,1713355838234,-614.89568166,0.00012378,2]
[322815049,1713355838244,-193.3820055,0.00012378,2]
[322815050,1713355838253,-207.65285215,0.00012378,2]
[322815052,1713355838262,-1934.55003292,0.00012379,2]
[322815053,1713355838271,-161.84978394,0.00012379,2]
[322815054,1713355838280,-154.86062544,0.00012379,2]
[322815055,1713355838289,-4083.24936592,0.0001238,2]
[322815056,1713355838298,-1224.61259041,0.00012384,2]
[322815057,1713355838307,-1575.3401522,0.00012479,2]
[322815058,1713355838318,-154.86062544,0.00012479,2]
[322815059,1713355838328,-154.86062544,0.00012481,2]
[322815060,1713355838338,-361.42917162,0.00012481,2]
[322815061,1713355838348,-474.19997224,0.00012481,2]
[322815062,1713355838357,-294.33824874,0.00012481,2]
[322815063,1713355838366,-252.50563863,0.00012481,2]
[322815064,1713355838375,-185.34804765,0.00012481,2]
[322815065,1713355838384,-202.33119369,0.00012481,2]
[322815066,1713355838393,-157.4992408,0.00012481,2]
[322815067,1713355838402,-154.86062544,0.00012481,2]
[322815068,1713355838412,-211.15546602,0.00012481,2]
[322815069,1713355838423,-309.61302161,0.00012481,2]
[322815070,1713355838432,-206.81708734,0.00012481,2]
[322815071,1713355838442,-154.92704581,0.00012481,2]
[322815072,1713355838456,-154.86062544,0.00012481,2]
[322815073,1713355838467,-160.60934883,0.00012481,2]
[322815074,1713355838478,-185.78883387,0.00012481,2]
[322815075,1713355838487,-155.21079364,0.00012484,2]
[322815076,1713355838496,-155.77600903,0.00012484,2]
[322815077,1713355838506,-210.09411576,0.00012484,2]
[322815078,1713355838518,-252.19823313,0.00012484,2]
[322815079,1713355838529,-1423.81465691,0.000125,2]
[322815080,1713355838539,-420.0,0.00013564,2]
[322815081,1713355838548,-420.0,0.00013596,2]
[322815082,1713355838557,-377.978664,0.00013699,2]
[322815083,1713355838566,-926.63477986,0.00014,2]
[322815084,1713355838575,-1224.61259037,0.00014743,2]
[322815085,1713355838584,-587.0,0.00014884,2]
[322815086,1713355838594,-587.0,0.00014956,2]
[322815087,1713355838605,-154.86062544,0.00015,2]
[322815088,1713355838614,-156.84586358,0.00015,2]
[322815089,1713355838623,-937.89373734,0.00015,2]
[322815090,1713355838632,-167.32835926,0.00015,2]
[322815091,1713355838642,-2096.98803724,0.00015,2]
[322815092,1713355838652,-154.86062544,0.00015,2]
[322815093,1713355838661,-823.0,0.00016334,2]
[322815094,1713355838670,-823.0,0.00016451,2]
[322815095,1713355838680,-1224.61259037,0.00017101,2]
[322815096,1713355838689,-570.0,0.00017924,2]
[322815097,1713355838699,-1152.0,0.00018096,2]
[322815098,1713355838708,-602.61216035,0.000185,2]
[322815099,1713355838718,-304.24078065,0.00018891,2]
[322815100,1713355838728,-188.6288603,0.000189,2]
[322815101,1713355838737,-1157.23664915,0.000189,2]
[322815102,1713355838747,-188.96976676,0.0001897,2]
[322815103,1713355838757,-159.11486178,0.00019,2]
[322815104,1713355838766,-1000.0,0.00019,2]
[322815105,1713355838775,-265.39770589,0.00019178,2]
[322815106,1713355838785,-266.7220136,0.00019178,2]
[322815107,1713355838794,-500.0,0.00019178,2]
[322815108,1713355838804,-500.0,0.00019178,2]
[322815109,1713355838813,-500.0,0.00019178,2]
[322815110,1713355838823,-500.0,0.00019178,2]
[322815111,1713355838833,-507.3863842,0.00019178,2]
[322815112,1713355838843,-599.87704222,0.00019178,2]
[322815113,1713355838854,-500.0,0.00019178,2]
[322815114,1713355838863,-500.0,0.00019178,2]
[322815115,1713355838872,-500.0,0.00019178,2]
[322815116,1713355838882,-178.00211012,0.00019178,2]
[322815117,1713355838891,-500.0,0.00019178,2]
[322815118,1713355838900,-500.0,0.00019178,2]
[322815119,1713355838910,-370.09015215,0.00019178,2]
[322815120,1713355838919,-500.0,0.00019178,2]
[322815121,1713355838929,-500.0,0.00019178,2]
[322815122,1713355838939,-628.1031262,0.00019178,2]
[322815123,1713355838948,-500.0,0.00019178,2]
[322815124,1713355838957,-500.0,0.00019178,2]
[322815125,1713355838966,-337.16265359,0.00019178,2]
[322815126,1713355838975,-164.800631,0.00019178,2]
[322815127,1713355838984,-168.972449,0.00019178,2]
[322815128,1713355838993,-1224.61259037,0.0001946,2]
[322815129,1713355839003,-1613.0,0.00019906,2]
[322815130,1713355839013,-772.566136,0.00019978,2]
[322815131,1713355839022,-539.00286328,0.00019998,2]
[322815132,1713355839031,-1669.42037848,0.00019998,2]
[322815133,1713355839041,-156.98200501,0.00019998,2]
[322815134,1713355839050,-39399.56231816,0.0002,2]
[322815135,1713355839059,-1681.59050867,0.0002,2]
[322815136,1713355839069,-406.49971412,0.0002,2]
[322815137,1713355839079,-400.0,0.0002,2]
[322815138,1713355839088,-521.03498526,0.0002,2]
[322815139,1713355839098,-688.59429255,0.0002,2]
[322815140,1713355839109,-241.20667916,0.0002,2]
[322815141,1713355839118,-154.86062544,0.0002,2]
[322815142,1713355839130,-181.27172177,0.0002,4]
[322815143,1713355839226,-237.92490957,0.0002,2]
[322815144,1713355839238,-277.60171443,0.0002,2]
[322815145,1713355839247,-200.0,0.0002,2]
[322815146,1713355839256,-377.978664,0.00020548,2]
[322815147,1713355839266,-236.10567712,0.00021,2]
[322815148,1713355839277,-51564.37297104,0.00021,2]
[322815149,1713355839286,-1224.61259037,0.00021818,2]
[322815150,1713355839296,-1287.0,0.00021896,2]
[322815151,1713355839306,-611.8741466,0.00021918,2]
[322815152,1713355839315,-158.857458,0.00022,2]
[322815153,1713355839325,-313.8132407,0.00022,2]
[322815154,1713355839334,-151.90732859,0.00022954,2]
[322815155,1713355839343,-243.24834116,0.00023,2]
[322815156,1713355839355,-2274.4260267,0.000231,2]
[322815157,1713355839365,-600.10626461,0.00025,2]
[322815158,1713355839374,-154.86062544,0.000252,2]
[322815159,1713355839384,-284.97852371,0.000252,2]
[322815160,1713355839393,-10102.36070328,0.000252,2]
[322815161,1713355839402,-120573.14122696,0.000252,7]
[322815162,1713355839412,-327.8248124,0.00026699,2]
[322815163,1713355839421,-79919.68461897,0.00026949,2]
[322815164,1713355839431,-8507.18295185,0.00027,2]
[322815165,1713355839441,-160.19756079,0.00027,2]
[322815166,1713355839453,-13650.50995099,0.00027,2]
[322815167,1713355839462,-332.07459253,0.00027,2]
[322815168,1713355839471,-154.86062544,0.00027,2]
[322815169,1713355839480,-500.0,0.00027397,2]
[322815170,1713355839489,-500.0,0.00027397,2]
[322815171,1713355839499,-500.0,0.00027397,2]
[322815172,1713355839508,-500.0,0.00027397,2]
[322815173,1713355839517,-500.0,0.00027397,2]
[322815174,1713355839526,-500.0,0.00027397,2]
[322815176,1713355839537,-500.0,0.00027397,2]
[322815177,1713355839546,-500.0,0.00027397,2]
[322815178,1713355839555,-500.0,0.00027397,2]
[322815179,1713355839564,-500.0,0.00027397,2]
[322815180,1713355839573,-500.0,0.00027397,2]
[322815181,1713355839582,-500.0,0.00027397,2]
[322815182,1713355839591,-500.0,0.00027397,2]
[322815183,1713355839600,-500.0,0.00027397,2]
[322815184,1713355839609,-500.0,0.00027397,2]
[322815185,1713355839618,-500.0,0.00027397,2]
[322815186,1713355839628,-500.0,0.00027397,2]
[322815187,1713355839637,-269.24201539,0.00027397,2]
[322815188,1713355839646,-500.0,0.00027397,2]
[322815189,1713355839655,-500.0,0.00027397,2]
[322815190,1713355839664,-500.0,0.00027397,2]
[322815191,1713355839673,-162.167974,0.00027397,2]
[322815192,1713355839682,-1000.0,0.00027397,2]
[322815193,1713355839691,-166.666666,0.00027397,2]
[322815194,1713355839700,-165.152405,0.00027397,2]
[322815195,1713355839709,-974.17573871,0.000274,2]
[322815196,1713355839718,-38188.96181052,0.000275,2]
[322815197,1713355839727,-800.8369821,0.000275,17]
[322815198,1713355839736,-80000.0,0.00028,2]
[322815199,1713355839746,-166.666666,0.00028038,2]
[322815200,1713355839755,-2274.4260267,0.000281,2]
[322815201,1713355839764,-166.666666,0.00028679,2]
[322815202,1713355839773,-3729.33559342,0.0002877,2]
[322815203,1713355839782,-5000.0,0.00029,2]
[322815204,1713355839791,-1000.0,0.000292,3]
[322815205,1713355839800,-166.666666,0.00029321,2]
[322815206,1713355839809,-1790.54442132,0.0002978,10]
[322815207,1713355839818,-744.86049233,0.0002985,30]
[322815208,1713355839826,-1532.93270246,0.0002985,30]
[322815209,1713355839836,-3756.02912794,0.0002985,30]
[322815210,1713355839845,-5313.02764777,0.000299,2]
[322815211,1713355839856,-320.85402885,0.000299,2]
[322815212,1713355839865,-320.8540288,0.000299,2]
[322815213,1713355839874,-320.8540288,0.000299,2]
[322815214,1713355839882,-320.8540288,0.000299,2]
[322815215,1713355839892,-320.8540288,0.000299,2]
[322815216,1713355839901,-320.8540288,0.000299,2]
[322815217,1713355839910,-320.8540288,0.000299,2]
[322815218,1713355839919,-320.8540288,0.000299,2]
[322815219,1713355839928,-320.8540288,0.000299,2]
[322815220,1713355839937,-320.8540288,0.000299,2]
[322815221,1713355839946,-166.666666,0.00029962,2]
[322815222,1713355839955,-663.28711677,0.00029998,2]
[322815223,1713355839964,-323452.88757406,0.0003,2]
[322815224,1713355839973,-155.25194378,0.0003,4]
[322815225,1713355839983,-1832.47502662,0.0003,2]
[322815226,1713355839992,-576.00236236,0.0003,2]
[322815227,1713355840001,-5594.34889524,0.0003,7]
[322815228,1713355840010,-154.86062544,0.0003,4]
[322815229,1713355840018,-154.86062544,0.0003,4]
[322815230,1713355840027,-154.86062544,0.0003,2]
[322815231,1713355840037,-184.0,0.0003,2]
[322815232,1713355840046,-166.666666,0.00030603,2]
[322815233,1713355840055,-320.4553623,0.000308,10]
[322815234,1713355840064,-1000.0,0.000308,6]
[322815235,1713355840073,-1961.92360376,0.00031,2]
[322815236,1713355840082,-417.0,0.00031634,2]
[322815237,1713355840090,-1000.0,0.000318,7]
[322815238,1713355840100,-154.86062544,0.0003189,10]
[322815239,1713355840110,-191.18536531,0.00032,4]
[322815240,1713355840119,-1743.67345875,0.000328,2]
[322815241,1713355840128,-400.49560572,0.00032877,2]
[322815242,1713355840137,-5200.0,0.000329,9]
[322815243,1713355840146,-184.0,0.00033,2]
[322815244,1713355840155,-184.0,0.00033,2]
[322815245,1713355840164,-2274.4260267,0.000331,2]
[322815246,1713355840173,-156.6192828,0.0003332,2]
[322815247,1713355840182,-2968.87,0.00033328,2]
[322815248,1713355840191,-2968.87,0.00033328,2]
[322815249,1713355840201,-2968.87,0.00033328,2]
[322815250,1713355840210,-2968.87,0.00033328,2]
[322815251,1713355840219,-2968.87,0.00033328,2]
[322815252,1713355840229,-2968.87,0.00033328,2]
[322815253,1713355840238,-2968.87,0.00033328,2]
[322815254,1713355840247,-2968.87,0.00033328,2]
[322815255,1713355840256,-2968.87,0.00033328,2]
[322815256,1713355840265,-2968.87,0.00033328,2]
[322815257,1713355840274,-809287.06701409,0.00033333,7]
[322815258,1713355840283,-150.5,0.0003337,35]
[322815259,1713355840293,-1286.0,0.0003337,35]
[322815260,1713355840303,-150.5,0.0003338,35]
[322815261,1713355840312,-1286.0,0.0003338,35]
[322815262,1713355840321,-150.5,0.0003339,35]
[322815263,1713355840330,-1286.0,0.0003339,35]
[322815264,1713355840340,-14058.30363324,0.00033999,10]
[322815265,1713355840349,-465.62426375,0.00034,4]
[322815266,1713355840359,-201.0,0.000345,7]
[322815267,1713355840368,-6774.03366472,0.00034555,10]
[322815268,1713355840379,-417.0,0.00034634,2]
[322815269,1713355840390,-1022.4,0.000348,10]
[322815270,1713355840401,-2948.96689228,0.0003488,120]
[322815271,1713355840413,-158.43,0.0003499,35]
[322815272,1713355840423,-214.26513963,0.00035,4]
[322815273,1713355840435,-597.24868455,0.00035,2]
[322815274,1713355840446,-12732.38586644,0.00035,4]
[322815275,1713355840461,-6874.43086894,0.00035,4]
[322815276,1713355840472,-498.64208688,0.00035,2]
[322815277,1713355840482,-218.0,0.00035,10]
[322815278,1713355840495,-389196.13984326,0.00035,30]
[322815287,1713355841344,-554.45471951,0.00035,30]
[322815288,1713355841354,-151.0,0.00035,2]
[322815289,1713355841363,-151.0,0.00035,2]
[322815290,1713355841371,-151.0,0.00035,2]
[322815291,1713355841381,-151.0,0.00035,2]
[322815292,1713355841391,-1416.421045,0.00035,2]
[322815293,1713355841400,-1416.421045,0.00035,2]
[322815294,1713355841410,-961.077497,0.00035,2]
[322815295,1713355841419,-961.077497,0.00035,2]
[322815296,1713355841429,-151.0,0.00035,2]
[322815297,1713355841439,-151.0,0.00035,2]
[322815298,1713355841448,-888.653985,0.00035,2]
[322815299,1713355841460,-888.653985,0.00035,2]
[322815300,1713355841469,-151.0,0.00035,2]
[322815301,1713355841480,-151.0,0.00035,2]
[322815302,1713355841490,-993.955638,0.00035,2]
[322815303,1713355841500,-993.955638,0.00035,2]
[322815304,1713355841510,-1389.560248,0.00035,2]
[322815305,1713355841519,-1389.560248,0.00035,2]
[322815306,1713355841530,-112.20845449,0.00035,2]
[322815307,1713355841543,-3512.26845951,0.00035,2]
[322815308,1713355841552,-151.0,0.00035,2]
[322815309,1713355841562,-3624.476914,0.00035,2]
[322815310,1713355841572,-151.0,0.00035,2]
[322815311,1713355841581,-151.0,0.00035,2]
[322815312,1713355841591,-294.930414,0.00035,2]
[322815313,1713355841601,-294.930414,0.00035,2]
[322815314,1713355841610,-151.0,0.00035,2]
[322815315,1713355841619,-150.0,0.00035,2]
[322815316,1713355841629,-739.82184036,0.000351,2]
[322815317,1713355841638,-565.30346311,0.00035616,2]
[322815318,1713355841647,-2031.94927,0.00035616,120]
[322815319,1713355841657,-210.49024098,0.0003589,2]
[322815320,1713355841666,-1332.140001,0.00035999,4]
[322815321,1713355841676,-184.0,0.00036,2]
[322815322,1713355841685,-184.0,0.00036,2]
[322815323,1713355841695,-184.0,0.00036,2]
[322815324,1713355841706,-255.98461491,0.0003624,2]
[322815325,1713355841736,-162.167974,0.0003653,2]
[322815326,1713355841771,-2695.04414896,0.0003691,30]
[322815439,1713357030048,3252.08022728,0.00011586,2]
[322815440,1713357030081,9000.0,0.00011586,2]
[322815441,1713357030110,10000.0,0.00011586,2]
[322815442,1713357030142,2647.91977272,0.00011586,2]
[322815488,1713357032761,-1488.61335239,0.00012573,2]
[322815490,1713357032770,-154.86062544,0.00012573,2]
[322815492,1713357032779,-2942.63433838,0.00012574,2]
[322815494,1713357032788,-471.02610279,0.00012574,2]
[322815496,1713357032800,-7858.55367278,0.00012574,2]
[322815498,1713357032811,-300.0,0.00012574,2]
[322815500,1713357032820,-300.0,0.00012574,2]
[322815502,1713357032830,-888.43676539,0.00012575,2]
[322815504,1713357032838,-154.86062544,0.00012575,2]
[322815506,1713357032848,-167.52776302,0.00012575,2]
[322815508,1713357032857,-205.83283873,0.00012575,2]
[322815510,1713357032866,-654.45266231,0.00012575,2]
[322815512,1713357032876,-51884.94004749,0.00012579,2]
[322815529,1713357038363,-308.94875,0.00012579,2]
[322815531,1713357038388,-1562.5,0.00012579,2]
[322815567,1713357043552,-1203.48591122,0.00012579,2]
[322815673,1713357163642,-623.0836212,0.00012477,2]
[322815674,1713357163665,-176.34019978,0.00012478,2]
[322815675,1713357163690,-785.72947127,0.0001248,2]
[322815682,1713357206218,-654.45266231,0.00012573,2]
[322815684,1713357206241,-552.49470434,0.00012573,2]
[322815685,1713357206261,-335.8993411,0.00012574,2]
[322815702,1713357536320,6352.08022728,0.00011364,2]
[322815703,1713357536351,9000.0,0.00011364,2]
[322815704,1713357536382,9000.0,0.00011364,2]
[322815705,1713357536413,547.91977272,0.00011364,2]
[322815716,1713358003229,8452.08022728,0.00011245,2]
[322815717,1713358003260,9000.0,0.00011245,2]
[322815718,1713358003295,7447.91977272,0.00011245,2]
[322815767,1713358232475,-1488.61335239,0.00012139,2]
[322815768,1713358232485,-654.45266231,0.0001214,2]
[322815769,1713358232494,-176.34019978,0.00012149,2]
[322815770,1713358232504,-300.0,0.00012231,2]
[322815771,1713358232514,-300.0,0.00012231,2]
[322815772,1713358232523,-361.42917162,0.00012231,2]
[322815773,1713358232532,-68883.42359493,0.00012231,2]
[322815797,1713358238553,-1.85718953,0.00012231,2]
[322815798,1713358238582,-3503.73970485,0.00012231,2]
[322815799,1713358238591,-135.95934063,0.00012231,2]
[322815800,1713358238602,-54963.47135921,0.00012231,2]
[322815801,1713358238618,-3989.87766966,0.00012231,2]
[322815803,1713358238628,-17132.77563274,0.00012232,2]
[322815832,1713358242662,-400.1176732,0.00012232,2]
[322815882,1713358244552,-568.2789366,0.00012231,2]
[322815884,1713358244562,-13730.0978862,0.00012232,2]
[322815886,1713358244572,-882.33479028,0.00012249,2]
[322815888,1713358244581,-250.18519589,0.00012359,2]
[322815889,1713358244590,-12610.71640316,0.00012365,2]
[322815890,1713358244619,-513.35127972,0.00012365,2]
[322815971,1713358524728,250.0,0.00011309,2]
[322815977,1713358615090,1302.08022728,0.0001097,2]
[322815978,1713358615122,9000.0,0.0001097,2]
[322815979,1713358615152,9000.0,0.0001097,2]
[322815980,1713358615183,5597.91977272,0.0001097,2]
[322815982,1713358653450,642.2989391,0.00010969,2]
[322815984,1713358760491,7897.0,0.00013,5]
[322815985,1713358835870,10000.0,0.000252,30]
[322815986,1713358854248,1284.4,0.000252,30]
[322815987,1713358992446,197.837897,0.00010392,2]
[322815988,1713359012816,-2505.0,0.0004009,120]
[322817801,1713359083772,1667.3646595,0.00010389,2]
[322817802,1713359107006,894.57873168,0.00010388,2]
[322817803,1713359107045,9000.0,0.00010388,2]
[322817804,1713359107077,9000.0,0.00010388,2]
[322817805,1713359107109,6005.42126832,0.00010388,2]
[322817823,1713359371866,100000.0,0.00025342,27]
[322817824,1713359385527,900000.0,0.00025342,27]
[322817825,1713359392027,1000000.0,0.00025342,27]
[322817829,1713359402258,1000000.0,0.00025342,27]
[322817830,1713359404183,1000000.0,0.00025342,27]
[322817831,1713359406059,1000000.0,0.00025342,27]
[322817832,1713359407616,1000000.0,0.00025342,27]
[322817833,1713359408978,1000000.0,0.00025342,27]
[322817834,1713359410539,1000000.0,0.00025342,27]
[322817835,1713359413506,1000002.0,0.00025342,27]
[322817836,1713359416302,999998.0,0.00025342,27]
[322817852,1713359432781,-1137.8857272,0.00011266,2]
[322817853,1713359432792,-659.43850789,0.00011267,2]
[322817854,1713359432802,-203.60696342,0.00011268,2]
[322817855,1713359432811,-157.04962732,0.00011268,2]
[322817856,1713359432821,-163.98644275,0.00011269,2]
[322817857,1713359432830,-622.68427412,0.00011273,2]
[322817858,1713359432839,-169.28436077,0.00011274,2]
[322817859,1713359432849,-27543.27728425,0.00011368,2]
[322817936,1713359442652,-163.98644275,0.00011265,2]
[322817937,1713359442661,-2584.94589356,0.00011266,2]
[322817938,1713359442670,-12979.7569292,0.00011368,2]
[322817939,1713359442682,-17025.50775483,0.00011368,2]
[322817940,1713359442694,-456.33,0.00011368,2]
[322817973,1713359443969,-1084.43640122,0.00011368,2]
[322817974,1713359443979,-7749.35298071,0.00011368,2]
[322818013,1713359614945,2994.57873168,0.00010364,2]
[322818014,1713359614977,9000.0,0.00010364,2]
[322818015,1713359615008,9000.0,0.00010364,2]
[322818016,1713359615043,2568.40200825,0.00010364,2]
[322818017,1713359615077,1337.01926007,0.00010364,2]
[322818489,1713359755662,8595.0,0.00037975,40]